bitfinex/quotes_ETHUSD_20240822
["timestamp","ask_amount","ask_price","bid_price","bid_amount"]
[1724355224328,9.26413483,2606.9,2606.4,6.286689]
[1724355224712,9.26414483,2606.9,2606.4,6.286689]
[1724355224904,5.42808483,2606.9,2606.6,1.655]
[1724355230104,3.83597,2606.9,2606.6,1.655]
[1724355230491,5.42808483,2606.9,2606.6,1.655]
[1724355231610,9.26414483,2606.9,2606.6,1.655]
[1724355231791,5.42808483,2606.9,2606.6,1.655]
[1724355233901,5.42808483,2606.9,2606.4,6.286799]
[1724355234134,5.42808483,2606.9,2606.5,1.2583049]
[1724355235915,9.26414483,2606.9,2606.5,1.2583049]
[1724355236144,3.83612,2606.8,2606.4,2.450099]
[1724355236817,5.42810483,2606.9,2606.4,6.286799]
[1724355238811,5.42810483,2606.9,2606.5,3.83655]
[1724355239017,3.83599,2606.9,2606.5,3.83655]
[1724355239314,1.59211483,2607.0,2606.6,5.4914]
[1724355239530,1.59211483,2607.1,2606.8,5.4911]
[1724355239843,1.59211483,2607.3,2607.0,5.49082]
[1724355240030,1.59211483,2607.4,2607.0,5.49082]
[1724355240233,1.59211483,2607.2,2607.0,5.49075]
[1724355240541,1.59211483,2607.3,2607.1,0.786435]
[1724355240745,3.8356,2607.2,2606.9,2.3736]
[1724355240951,3.8356,2607.2,2606.7,2.3736]
[1724355241152,3.83569,2607.1,2606.7,2.3736]
[1724355242281,5.42764483,2607.2,2606.7,6.20981]
[1724355242605,5.42764483,2607.2,2606.8,1.655]
[1724355242897,5.42764483,2607.2,2606.9,0.786481]
[1724355244751,1.59211483,2607.2,2606.9,0.786481]
[1724355245445,0.92539372,2607.1,2607.0,1.655]
[1724355245648,0.92539372,2607.1,2607.0,7.8853]
[1724355246261,0.35592066,2607.1,2607.0,7.8853]
[1724355246464,0.35592066,2607.1,2607.0,9.1360811]
[1724355246996,0.35593879,2607.1,2607.0,9.1360811]
[1724355247354,0.35593879,2607.1,2607.0,12.9719011]
[1724355247575,1.59211483,2607.6,2607.2,3.83546]
[1724355247782,0.92557533,2607.5,2607.3,1.655]
[1724355247951,0.92557533,2607.4,2607.3,1.655]
[1724355248146,0.35599051,2607.4,2607.3,1.655]
[1724355248368,0.35599051,2607.4,2607.3,2.204046]
[1724355248551,0.35599051,2607.4,2607.3,8.454226]
[1724355249645,0.35599051,2607.4,2607.3,4.618846]
[1724355249892,0.35599051,2607.4,2607.3,1.655]
[1724355250095,1.59211483,2607.6,2607.3,1.655]
[1724355250386,0.35599577,2607.4,2607.1,4.0698]
[1724355250589,0.35599577,2607.4,2607.0,8.9222311]
[1724355250590,4.19123577,2607.4,2607.0,3.83571]
[1724355250753,0.35599577,2607.3,2607.0,3.83571]
[1724355251087,0.35599577,2607.2,2607.0,8.845101]
[1724355251250,3.8351,2607.5,2607.0,5.009351]
[1724355251454,2.323,2607.3,2606.7,2.4097]
[1724355251794,3.83575,2607.1,2606.6,5.4913]
[1724355251954,0.35603082,2607.0,2606.6,5.4913]
[1724355252155,0.35603082,2606.9,2606.7,1.5261]
[1724355252350,3.83575,2607.1,2606.7,1.5261]
[1724355252554,0.3559976,2607.0,2606.7,1.5261]
[1724355252771,0.3559976,2606.9,2606.7,1.5261]
[1724355252979,3.83575,2607.1,2606.7,1.5261]
[1724355253180,0.35599224,2607.0,2606.7,1.5261]
[1724355253381,0.35599224,2607.0,2606.8,1.085374]
[1724355253587,0.35599224,2606.9,2606.8,2.740374]
[1724355253901,3.83574,2607.1,2606.8,2.740374]
[1724355254055,0.35597971,2606.9,2606.8,1.655]
[1724355254255,0.35597971,2607.0,2606.8,1.655]
[1724355254465,0.35597971,2606.9,2606.6,5.4913]
[1724355254852,0.35597971,2606.9,2606.5,3.83653]
[1724355255056,0.35594344,2606.8,2606.5,3.83653]
[1724355255294,2.4363,2606.9,2606.5,4.997774]
[1724355255466,0.35593758,2606.8,2606.5,4.997774]
[1724355255795,2.4363,2606.9,2606.5,4.997774]
[1724355255995,0.35593897,2606.8,2606.5,4.997774]
[1724355256226,0.35593897,2606.7,2606.5,4.997774]
[1724355256467,2.4363,2606.9,2606.6,1.0489384]
[1724355256602,0.35593023,2606.8,2606.5,3.83653]
[1724355257101,0.35593023,2606.7,2606.4,1.655]
[1724355257302,3.83613,2606.8,2606.4,1.655]
[1724355257531,0.3559275,2606.7,2606.4,5.4917]
[1724355257692,3.83613,2606.8,2606.4,3.323847]
[1724355257892,0.35593316,2606.7,2606.4,1.655]
[1724355258130,3.83613,2606.8,2606.4,1.655]
[1724355258444,0.35593611,2606.7,2606.4,1.655]
[1724355258634,4.02841483,2606.9,2606.4,1.655]
[1724355258847,0.35593262,2606.8,2606.4,5.4917]
[1724355259000,0.35593262,2606.7,2606.5,0.932846]
[1724355259205,7.86439483,2606.9,2606.5,0.932846]
[1724355259534,4.7616224,2606.8,2606.4,1.655]
[1724355259719,0.35593313,2606.7,2606.4,1.655]
[1724355259920,0.35593313,2606.6,2606.4,1.655]
[1724355260120,3.8362,2606.8,2606.4,1.655]
[1724355260460,0.35592984,2606.7,2606.4,1.655]
[1724355260616,0.35592984,2606.6,2606.4,7.160529]
[1724355260816,3.8362,2606.8,2606.4,7.160529]
[1724355261144,0.35593218,2606.7,2606.4,7.160529]
[1724355261310,7.86438483,2606.9,2606.4,7.160529]
[1724355261647,0.35593117,2606.8,2606.4,7.160529]
[1724355261941,0.35593481,2606.7,2606.6,5.49141]
[1724355262143,1.59211483,2607.1,2606.7,3.83616]
[1724355262303,0.35595421,2607.0,2606.8,1.655]
[1724355262505,0.35595421,2606.9,2606.8,5.49112]
[1724355262729,0.35595421,2606.9,2606.8,6.423873]
[1724355263047,0.35595887,2606.9,2606.8,6.423873]
[1724355263416,1.59211483,2607.2,2606.8,6.423873]
[1724355263605,1.59211483,2607.2,2606.8,5.49112]
[1724355263810,0.35595843,2606.9,2606.8,1.655]
[1724355264558,0.35595843,2607.0,2606.6,5.4913]
[1724355264848,3.83607,2606.9,2606.6,1.655]
[1724355265249,0.35597776,2606.8,2606.6,1.655]
[1724355265414,3.83607,2606.9,2606.6,1.655]
[1724355266015,3.83583,2607.0,2606.6,1.655]
[1724355266235,0.35601096,2606.9,2606.6,6.8378189]
[1724355266445,3.83583,2607.0,2606.6,3.0014289]
[1724355266756,3.83583,2607.0,2606.6,6.8378189]
[1724355266757,0.3560268,2606.9,2606.6,6.8378189]
[1724355266957,3.83583,2607.0,2606.6,6.8378189]
[1724355267131,0.35602597,2606.9,2606.6,3.0014289]
[1724355267336,9.26388483,2607.0,2606.6,1.655]
[1724355267536,0.35601374,2606.9,2606.6,1.655]
[1724355268158,6.61110374,2606.9,2606.6,1.655]
[1724355268457,0.35601374,2606.8,2606.6,1.655]
[1724355269724,3.83599,2606.9,2606.6,1.655]
[1724355269927,0.35612038,2606.8,2606.4,7.95899]
[1724355270233,2.51951614,2606.7,2606.4,7.95893]
[1724355270426,1.989078,2606.8,2606.4,5.49163]
[1724355270427,0.35642281,2606.6,2606.4,5.49163]
[1724355270621,5.42825483,2606.8,2606.4,5.49163]
[1724355270836,0.35738453,2606.7,2606.4,5.49163]
[1724355271040,0.35738453,2606.6,2606.4,5.49163]
[1724355271242,5.42825483,2606.8,2606.4,5.49163]
[1724355271483,0.35717738,2606.7,2606.4,5.49163]
[1724355271666,0.35717738,2606.6,2606.4,5.49163]
[1724355272005,5.42825483,2606.8,2606.4,5.49163]
[1724355272178,0.35696473,2606.7,2606.4,5.49163]
[1724355272385,0.35696473,2606.6,2606.4,5.49163]
[1724355272607,5.42825483,2606.8,2606.4,5.49163]
[1724355272608,3.83614,2606.8,2606.4,5.49163]
[1724355272808,5.42809483,2606.9,2606.4,5.49163]
[1724355273272,0.35683813,2606.8,2606.4,5.49163]
[1724355273467,0.71366119,2606.8,2606.4,7.399093]
[1724355273711,5.42809483,2606.9,2606.4,11.235713]
[1724355273916,0.35682988,2606.8,2606.4,11.235713]
[1724355274098,5.42809483,2606.9,2606.4,11.235713]
[1724355274299,0.35695907,2606.8,2606.4,11.235713]
[1724355274502,5.42809483,2606.9,2606.4,11.235713]
[1724355274700,0.35693601,2606.8,2606.4,11.235713]
[1724355274879,5.42809483,2606.9,2606.4,11.235703]
[1724355275094,0.35692126,2606.8,2606.4,7.399083]
[1724355275293,0.35690747,2606.7,2606.4,7.399083]
[1724355275500,5.42809483,2606.9,2606.4,5.49162]
[1724355275698,0.3569048,2606.8,2606.4,5.49162]
[1724355276004,3.83598,2606.9,2606.4,9.32825]
[1724355276332,4.19302741,2606.8,2606.4,5.49162]
[1724355276507,3.83612,2606.8,2606.4,5.49162]
[1724355276824,3.83612,2606.8,2606.4,7.399089]
[1724355277329,1.59211483,2606.9,2606.4,11.235689]
[1724355277546,0.35680117,2606.8,2606.4,7.399069]
[1724355277745,3.83598,2606.9,2606.4,11.235689]
[1724355278035,0.35680436,2606.8,2606.5,1.1235689]
[1724355278211,5.42795483,2607.0,2606.5,7.2715189]
[1724355278412,0.3567817,2606.9,2606.5,7.2715189]
[1724355278634,0.3567817,2606.8,2606.5,7.2715189]
[1724355278801,5.42795483,2607.0,2606.6,1.46705879]
[1724355278995,0.35679833,2606.9,2606.5,6.14795]
[1724355279200,1.59211483,2607.1,2606.7,3.83618]
[1724355279395,1.59211483,2607.1,2606.8,7.87871]
[1724355279807,0.35681345,2607.0,2606.6,5.49131]
[1724355280137,9.26356483,2607.1,2606.7,0.776221]
[1724355280299,0.35676487,2607.0,2606.6,5.49131]
[1724355280504,0.35676487,2606.9,2606.6,1.655]
[1724355280723,5.42806483,2607.0,2606.6,1.655]
[1724355280926,0.35674589,2606.9,2606.5,2.2709]
[1724355281104,0.35674246,2606.8,2606.5,1.655]
[1724355281305,5.42811483,2606.9,2606.5,1.655]
[1724355281607,0.3567381,2606.8,2606.5,5.49154]
[1724355281801,1.59211483,2606.9,2606.5,5.49154]
[1724355282003,0.35673348,2606.8,2606.5,5.49154]
[1724355282513,9.26397483,2607.0,2606.5,5.49154]
[1724355282730,5.42802483,2607.0,2606.5,5.49154]
[1724355282915,0.35673984,2606.9,2606.5,6.8421909]
[1724355283103,5.42802483,2607.0,2606.5,6.8421909]
[1724355283631,0.35674485,2606.9,2606.5,6.8421909]
[1724355283843,5.42802483,2607.0,2606.5,6.8421909]
[1724355284041,0.35674613,2606.9,2606.5,6.8421909]
[1724355284339,5.42802483,2607.0,2606.5,6.8421909]
[1724355284638,0.35680596,2606.9,2606.5,6.8421909]
[1724355284841,5.42802483,2607.0,2606.6,1.25862599]
[1724355285038,0.35690864,2606.9,2606.5,5.49154]
[1724355285218,3.83591,2607.0,2606.5,5.49154]
[1724355285416,0.35690117,2606.9,2606.5,5.49154]
[1724355285628,3.83591,2607.0,2606.5,5.49154]
[1724355286102,0.3567727,2606.9,2606.5,5.49154]
[1724355286302,3.83591,2607.0,2606.5,6.8421909]
[1724355286502,0.35672435,2606.9,2606.5,6.8421909]
[1724355286814,3.8359,2607.0,2606.5,6.8421909]
[1724355287014,0.35670254,2606.9,2606.5,5.49154]
[1724355287214,7.6718,2607.0,2606.5,5.49154]
[1724355287428,0.35670472,2606.9,2606.5,5.49154]
[1724355287629,7.6718,2607.0,2606.5,5.49154]
[1724355287840,0.35670425,2606.9,2606.5,5.49154]
[1724355288041,3.8359,2607.0,2606.5,6.8421909]
[1724355288341,0.35662063,2606.9,2606.5,6.8421909]
[1724355288540,7.6718,2607.0,2606.5,6.8421909]
[1724355288703,0.35661287,2606.9,2606.5,5.49154]
[1724355288912,7.6718,2607.0,2606.5,5.49154]
[1724355289317,0.35666689,2606.9,2606.5,5.49154]
[1724355289544,3.8359,2607.0,2606.5,5.49154]
[1724355290047,0.35667018,2606.9,2606.5,5.49154]
[1724355290258,3.8359,2607.0,2606.5,5.49154]
[1724355290457,0.35665543,2606.9,2606.5,5.49154]
[1724355290659,9.26588365,2607.0,2606.5,5.49154]
[1724355290856,0.35665878,2606.9,2606.5,5.49154]
[1724355291044,9.26587365,2607.0,2606.5,5.49154]
[1724355291365,0.35665732,2606.9,2606.5,5.49154]
[1724355291655,9.26587365,2607.0,2606.5,5.49154]
[1724355291860,0.35665633,2606.9,2606.5,5.49154]
[1724355292164,9.26587365,2607.0,2606.5,5.49154]
[1724355292720,0.35665215,2606.9,2606.5,5.49154]
[1724355292923,5.42996365,2607.0,2606.5,5.49154]
[1724355293136,5.42996365,2607.0,2606.6,6.12339]
[1724355293336,0.35665457,2606.9,2606.7,1.655]
[1724355293542,5.42996365,2607.0,2606.7,1.655]
[1724355293745,0.35665825,2606.9,2606.7,1.655]
[1724355293949,5.42996365,2607.0,2606.7,1.655]
[1724355294155,0.35666051,2606.9,2606.7,1.655]
[1724355294462,0.35666051,2606.8,2606.7,1.655]
[1724355295020,1.59406365,2606.9,2606.7,1.655]
[1724355295224,0.35665482,2606.8,2606.7,1.655]
[1724355295460,0.35665482,2606.8,2606.6,2.287]
[1724355295639,1.59406365,2606.9,2606.6,2.287]
[1724355296267,0.35667042,2606.8,2606.6,2.287]
[1724355296462,5.43006365,2606.9,2606.4,6.2252]
[1724355296663,3.83627,2606.7,2606.4,2.3886]
[1724355297055,0.35663464,2606.6,2606.4,2.3886]
[1724355297253,3.83627,2606.7,2606.4,2.3886]
[1724355297453,0.35663555,2606.6,2606.4,2.3886]
[1724355297625,5.43033365,2606.7,2606.3,1.655]
[1724355297830,5.43033365,2606.7,2606.2,9.6754]
[1724355297831,3.83657,2606.5,2606.2,9.6754]
[1724355298033,0.35663144,2606.4,2606.1,5.49213]
[1724355298227,0.35663144,2606.3,2606.1,5.49213]
[1724355298532,0.35659443,2606.2,2605.8,2.3154]
[1724355298728,2.3518,2605.9,2605.5,3.83987442]
[1724355298964,5.43146365,2606.0,2605.5,5.49487442]
[1724355299146,0.35652939,2605.9,2605.5,5.49487442]
[1724355299444,5.43136365,2606.0,2605.5,5.49487442]
[1724355299627,0.35652957,2605.9,2605.5,5.49487442]
[1724355299851,3.8373,2606.0,2605.5,5.49487442]
[1724355300051,0.35653005,2605.9,2605.5,9.33283442]
[1724355300267,0.35650431,2605.8,2605.6,3.83787]
[1724355300463,1.59406365,2606.0,2605.6,3.83787]
[1724355300692,5.43134365,2606.1,2605.6,3.83787]
[1724355300870,0.35652176,2606.0,2605.6,3.83787]
[1724355301051,5.43134365,2606.1,2605.6,5.09601279]
[1724355301408,1.95058115,2606.0,2605.6,5.09601279]
[1724355301577,5.43134365,2606.1,2605.6,5.09601279]
[1724355301734,4.3446823,2606.2,2605.6,5.09601279]
[1724355301735,1.59406365,2606.2,2605.7,1.655]
[1724355301934,1.59406365,2606.2,2606.1,1.655]
[1724355302155,2.39145876,2606.6,2606.1,1.655]
[1724355302156,1.59406365,2606.5,2606.3,3.83685]
[1724355302356,1.9928823,2606.6,2606.3,3.83685]
[1724355302357,1.59406365,2606.6,2606.3,1.655]
[1724355302570,1.95064056,2606.5,2606.1,1.655]
[1724355302776,0.35657691,2606.4,2606.1,1.655]
[1724355302992,5.43070365,2606.5,2606.1,2.587967]
[1724355303277,0.35656951,2606.4,2606.1,2.587967]
[1724355303574,3.83664,2606.5,2606.1,2.587967]
[1724355303782,0.35661755,2606.4,2606.1,2.587967]
[1724355303990,3.83664,2606.5,2606.1,2.587967]
[1724355304155,5.43070365,2606.5,2606.1,1.655]
[1724355304498,0.35678875,2606.4,2605.9,3.83731]
[1724355304643,3.83671,2606.4,2605.9,3.83731]
[1724355306867,3.83671,2606.4,2605.9,7.67468]
[1724355307067,5.43070365,2606.5,2606.0,3.83727]
[1724355307264,0.35678024,2606.4,2606.0,4.841048]
[1724355307565,3.83664,2606.5,2606.0,4.841048]
[1724355307744,5.43047365,2606.6,2606.1,3.83714]
[1724355308094,4.19335865,2606.5,2606.0,1.003778]
[1724355308275,3.83657,2606.5,2606.0,1.003778]
[1724355308478,3.83657,2606.5,2606.1,0.8678408]
[1724355308672,1.59406365,2606.6,2606.2,2.406]
[1724355308863,0.35680519,2606.5,2606.1,4.7049808]
[1724355309066,5.43056365,2606.6,2606.1,3.83714]
[1724355309266,0.35680208,2606.5,2606.1,3.83714]
[1724355309608,5.43056365,2606.6,2606.1,3.83714]
[1724355309767,4.19337098,2606.5,2606.1,3.83714]
[1724355310114,3.83658,2606.5,2606.1,3.83714]
[1724355310991,5.43049365,2606.6,2606.1,3.83714]
[1724355311494,0.35680119,2606.5,2606.1,3.83714]
[1724355311696,5.43049365,2606.6,2606.1,3.83714]
[1724355311995,0.35680476,2606.5,2606.1,3.83714]
[1724355312201,5.43049365,2606.6,2606.1,3.83714]
[1724355312409,0.35680132,2606.5,2606.2,3.83699]
[1724355312716,1.59406365,2606.6,2606.2,3.83699]
[1724355312862,0.35679999,2606.5,2606.2,3.83699]
[1724355313055,5.43049365,2606.6,2606.1,4.845098]
[1724355313267,0.35679705,2606.5,2606.1,4.845098]
[1724355313500,5.43049365,2606.6,2606.1,4.845098]
[1724355313674,5.43049365,2606.6,2606.1,3.83705]
[1724355316901,3.83643,2606.6,2606.2,2.3354]
[1724355317856,3.83636,2606.7,2606.2,6.17233]
[1724355318055,7.6727,2606.7,2606.2,6.17233]
[1724355318598,3.83634,2606.7,2606.2,7.173268]
[1724355318774,7.6727,2606.7,2606.2,7.173248]
[1724355318973,3.83645,2606.6,2606.2,6.17231]
[1724355319191,3.83645,2606.6,2606.2,2.3354]
[1724355320282,3.83645,2606.6,2606.2,6.17239]
[1724355322969,3.83659,2606.5,2606.0,6.30541]
[1724355323165,3.83678,2606.4,2606.0,2.4682]
[1724355324523,3.83678,2606.4,2606.0,4.1242]
[1724355324670,3.83678,2606.4,2606.0,1.656]
[1724355326461,3.83686,2606.3,2605.9,11.19743]
[1724355327062,3.83686,2606.3,2605.9,7.36]
[1724355328264,6.17879,2606.2,2605.9,7.36]
[1724355328625,3.83717,2606.1,2605.9,7.36]
[1724355329813,3.83717,2606.1,2605.8,1.656]
[1724355330221,3.83717,2606.1,2605.5,6.16995442]
[1724355330425,3.8373,2606.0,2605.5,2.33194442]
[1724355330658,3.83753,2605.9,2605.5,0.00194442]
[1724355331637,3.8376,2605.8,2605.5,0.00194442]
[1724355331959,2.3417,2605.7,2605.5,0.00194442]
[1724355332165,3.83788,2605.6,2605.5,0.00194442]
[1724355332460,7.67576,2605.6,2605.5,0.00194442]
[1724355332846,2.3417,2605.5,2605.1,2.74018595]
[1724355333058,15.51311,2605.2,2605.1,0.74569705]
[1724355333262,19.35158,2605.2,2605.1,0.04660606]
[1724355333469,22.64516076,2605.2,2605.1,0.04660606]
[1724355333617,21.84241465,2605.2,2605.1,0.04660606]
[1724355333821,17.40711,2605.2,2605.1,0.04660606]
[1724355334059,19.06311,2605.2,2605.1,0.04660606]
[1724355334220,38.04,2603.1,2602.7,0.80477858]
[1724355334425,38.04,2603.1,2602.6,64.29797]
[1724355334855,1.58873573,2603.6,2602.6,66.78282642]
[1724355335183,3.84098,2603.5,2602.7,0.90822012]
[1724355335463,3.84153,2603.2,2602.6,64.29797]
[1724355336361,3.84173,2603.0,2602.6,64.29797]
[1724355336721,3.84119,2603.4,2602.6,64.29797]
[1724355337069,3.84117,2603.4,2602.8,3.84188]
[1724355337234,3.84117,2603.4,2602.7,3.93244067]
[1724355337566,3.84088,2603.6,2602.8,3.84199]
[1724355337860,3.84088,2603.6,2602.8,7.77443067]
[1724355338359,3.84114,2603.4,2602.8,7.77443067]
[1724355339725,3.84114,2603.4,2602.8,11.61634067]
[1724355340057,3.84101,2603.5,2602.8,7.77435067]
[1724355340462,3.8406,2603.8,2602.8,7.91744067]
[1724355340763,3.8406,2603.8,2603.2,6.21219]
[1724355341061,3.8403,2604.0,2603.2,6.21219]
[1724355341062,3.84041,2603.9,2603.2,6.21219]
[1724355341644,3.84054,2603.8,2603.2,6.21219]
[1724355342470,3.8403,2604.0,2603.2,6.21219]
[1724355342640,3.8403,2604.0,2603.2,7.217575]
[1724355342840,3.84048,2603.9,2603.2,7.217575]
[1724355343227,3.84057,2603.8,2603.2,7.217575]
[1724355343432,3.84121,2603.4,2602.8,2.3708]
[1724355343664,3.84139,2603.3,2602.8,2.3708]
[1724355343866,3.84073,2603.7,2602.6,64.29797]
[1724355344369,7.68332,2603.1,2602.6,64.29797]
[1724355344755,2.4893,2603.4,2602.6,64.29797]
[1724355344941,3.84148,2603.2,2602.6,64.29797]
[1724355345142,7.68242,2603.4,2602.7,3.84214]
[1724355345344,3.84088,2603.6,2603.0,3.84171]
[1724355345546,3.84088,2603.6,2602.9,3.84186]
[1724355346138,3.84088,2603.6,2602.9,3.84177]
[1724355346339,3.84088,2603.6,2602.9,7.68352]
[1724355346569,3.84088,2603.6,2602.9,3.84175]
[1724355346570,7.68183,2603.6,2602.9,3.84175]
[1724355346775,3.84088,2603.6,2602.9,7.68351]
[1724355347073,3.84088,2603.6,2603.0,3.84168]
[1724355347274,7.68181,2603.6,2603.0,3.84168]
[1724355347669,2.77,2604.1,2602.6,68.23041067]
[1724355347670,3.84061,2603.8,2603.1,6.24616]
[1724355348076,3.8404,2603.9,2603.3,7.68245]
[1724355348276,3.8404,2603.9,2603.3,3.84118]
[1724355348677,7.68122,2603.8,2603.1,7.606756]
[1724355348876,3.84073,2603.7,2603.1,6.24614]
[1724355349116,7.68122,2603.8,2603.1,10.08762]
[1724355349271,3.84054,2603.8,2603.1,10.08762]
[1724355349476,3.84054,2603.8,2603.1,6.24614]
[1724355350177,3.84054,2603.8,2603.1,6.24612]
[1724355350383,3.84032,2604.0,2603.3,3.84127]
[1724355350582,3.84049,2603.9,2603.3,3.84127]
[1724355351220,3.8402,2604.1,2603.1,3.765312]
[1724355351389,3.8402,2604.1,2603.5,7.68174]
[1724355351595,7.6804,2604.1,2603.5,3.84085]
[1724355351945,3.8402,2604.1,2603.5,3.84085]
[1724355352227,3.83995,2604.2,2603.6,3.84072]
[1724355352396,3.83988,2604.3,2603.5,3.84085]
[1724355352397,3.83988,2604.3,2603.8,3.84051]
[1724355352598,3.83938,2604.6,2604.0,3.84012]
[1724355353424,3.83982,2604.3,2603.5,11.2009]
[1724355353597,3.84018,2604.1,2603.5,15.0418]
[1724355354187,3.84018,2604.1,2603.6,3.84079]
[1724355354787,3.84018,2604.1,2603.5,11.20086]
[1724355355006,3.84018,2604.1,2603.6,3.84073]
[1724355355402,3.83987,2604.3,2603.6,3.84073]
[1724355355599,3.84004,2604.2,2603.6,3.84073]
[1724355355823,3.83987,2604.3,2603.5,11.20086]
[1724355355824,3.83987,2604.3,2603.7,3.84067]
[1724355356195,3.84027,2604.0,2603.5,11.20086]
[1724355356609,3.84027,2604.0,2603.5,3.84086]
[1724355356923,3.84001,2604.2,2603.4,2.2655]
[1724355357089,3.83982,2604.3,2603.7,7.68116]
[1724355357289,7.67952,2604.4,2603.8,3.84052]
[1724355357625,3.83974,2604.4,2603.9,3.84036]
[1724355358129,3.83945,2604.6,2604.0,6.10565]
[1724355358433,3.83915,2604.8,2604.1,7.68005]
[1724355358795,3.83915,2604.8,2604.1,3.84]
[1724355359187,3.83938,2604.6,2604.1,3.84]
[1724355359430,3.83964,2604.5,2604.0,2.2655]
[1724355359803,3.83964,2604.5,2604.0,6.10573]
[1724355360009,3.83938,2604.6,2604.1,3.84007]
[1724355360521,3.83938,2604.6,2604.0,6.10573]
[1724355360719,3.83938,2604.6,2604.1,3.84006]
[1724355360920,3.83903,2604.9,2604.3,3.83979]
[1724355361095,3.83887,2605.0,2604.3,3.83979]
[1724355361434,3.83894,2604.9,2604.3,7.6795]
[1724355361593,3.83887,2605.0,2604.4,3.83956]
[1724355361594,7.67776,2605.0,2604.4,3.83956]
[1724355361799,3.83893,2604.9,2604.4,3.83956]
[1724355362001,3.83907,2604.8,2604.1,7.68]
[1724355362227,3.83907,2604.8,2604.0,2.2655]
[1724355362228,3.83907,2604.8,2604.3,3.8397]
[1724355362732,3.83923,2604.7,2604.1,7.67998]
[1724355362934,3.83923,2604.7,2604.1,3.83998]
[1724355363432,3.83923,2604.7,2604.1,7.67999]
[1724355363789,3.83907,2604.8,2604.2,3.83991]
[1724355364037,10.16896,2605.0,2604.3,3.83971]
[1724355364194,10.16896,2605.0,2604.4,3.83963]
[1724355364195,3.83892,2604.9,2604.4,3.83963]
[1724355364905,3.83858,2605.2,2604.0,2.2655]
[1724355364906,3.83858,2605.2,2604.7,3.83921]
[1724355365247,3.83841,2605.3,2604.7,3.83912]
[1724355365473,3.83818,2605.5,2604.9,3.83883]
[1724355365677,7.67632,2605.5,2604.9,3.83883]
[1724355365823,3.83814,2605.5,2605.0,3.83874]
[1724355366025,7.67566,2605.7,2605.1,3.8386]
[1724355366381,3.83805,2605.5,2605.0,2.2514]
[1724355366661,3.83818,2605.4,2605.0,2.2514]
[1724355367829,3.83802,2605.6,2605.0,6.09014]
[1724355368251,3.83797,2605.6,2605.0,6.09014]
[1724355368454,7.67597,2605.6,2605.1,3.83862]
[1724355368859,3.83797,2605.6,2605.1,3.83862]
[1724355369092,3.83797,2605.6,2605.1,7.67715]
[1724355369229,3.83797,2605.6,2605.1,7.67706]
[1724355369431,3.83797,2605.6,2605.1,3.83853]
[1724355369943,3.8377,2605.8,2605.3,3.83829]
[1724355371262,3.83748,2605.9,2605.3,3.83824]
[1724355371600,3.8371,2606.2,2605.5,2.4168]
[1724355371774,3.8371,2606.2,2605.5,2.65848]
[1724355371949,3.83709,2606.2,2605.5,1.65948]
[1724355372275,3.83709,2606.2,2605.5,5.49742]
[1724355373367,3.83709,2606.2,2605.6,3.83785]
[1724355374075,3.83709,2606.2,2605.7,3.83772]
[1724355374791,7.6742,2606.2,2605.5,5.49737]
[1724355374949,3.83723,2606.1,2605.5,5.49737]
[1724355375149,3.83723,2606.1,2605.5,9.33532]
[1724355375549,3.83723,2606.1,2605.5,5.49737]
[1724355375753,3.83723,2606.1,2605.5,9.33532]
[1724355376012,2.2722,2606.5,2605.5,1.4178]
[1724355376168,2.2757,2606.0,2605.3,7.36]
[1724355376354,6.11309,2606.0,2605.4,3.8381]
[1724355376556,3.83745,2605.9,2605.4,3.8381]
[1724355378976,3.83761,2605.8,2605.3,7.36]
[1724355379896,3.83796,2605.6,2605.3,7.36]
[1724355380192,3.83796,2605.6,2605.1,2.2987]
[1724355380495,3.83776,2605.7,2605.1,2.2987]
[1724355380496,3.83803,2605.5,2605.1,2.2987]
[1724355381193,3.83776,2605.7,2605.1,6.13728]
[1724355382585,3.83792,2605.6,2605.1,6.13728]
[1724355382787,3.83776,2605.7,2605.0,3.83864]
[1724355382970,3.83776,2605.7,2605.2,3.83844]
[1724355383368,3.83776,2605.7,2605.0,5.206464]
[1724355383369,3.83736,2606.0,2605.4,3.83809]
[1724355383663,3.83747,2605.9,2605.4,3.83809]
[1724355384274,3.83747,2605.9,2605.4,7.6762]
[1724355384484,3.83747,2605.9,2605.4,3.83809]
[1724355385062,3.8376,2605.8,2605.4,3.83809]
[1724355385258,3.8376,2605.8,2605.3,2.4793]
[1724355385708,3.83774,2605.7,2605.3,3.83832]
[1724355385857,3.83774,2605.7,2605.1,3.83847]
[1724355386068,3.83804,2605.5,2605.0,7.685844]
[1724355386265,3.83804,2605.5,2605.0,2.4793]
[1724355386465,3.83819,2605.4,2605.0,2.4793]
[1724355386957,7.67615,2605.5,2605.0,2.4793]
[1724355387162,3.83804,2605.5,2605.0,2.4793]
[1724355387362,3.83804,2605.5,2605.0,6.31806]
[1724355387561,3.83804,2605.5,2605.0,6.31799]
[1724355387878,3.83761,2605.8,2605.3,3.83822]
[1724355390067,3.83755,2605.9,2605.3,3.83822]
[1724355390272,7.67509,2605.9,2605.4,3.83816]
[1724355390507,7.67508,2605.9,2605.4,3.83816]
[1724355390708,3.8373,2606.0,2605.6,3.83787]
[1724355390917,7.67444,2606.1,2605.6,3.83787]
[1724355391088,3.83742,2606.0,2605.5,6.19401]
[1724355391285,3.83742,2606.0,2605.3,6.29111]
[1724355391286,3.83748,2605.9,2605.3,6.29111]
[1724355391653,3.83748,2605.9,2605.4,3.83811]
[1724355393112,7.67484,2606.0,2605.5,3.83801]
[1724355393490,3.83746,2605.9,2605.5,3.83801]
[1724355394079,3.83746,2605.9,2605.3,10.12931]
[1724355394878,3.83746,2605.9,2605.4,3.83814]
[1724355395686,3.83742,2606.0,2605.5,3.83797]
[1724355395889,3.83715,2606.1,2605.3,2.4529]